[Event "GER-ch Youth-U12 2024"]
[Site "Willingen"]
[Date "2024.05.21"]
[Round "4"]
[White "Lee, Ho In"]
[Black "Gao, Chenzhuo"]
[Result "1/2-1/2"]
[ECO "D79"]
[WhiteElo "1668"]
[BlackElo "1580"]
[Annotator "NA RC"]
[PlyCount "82"]
[EventDate "2022.06.05"]
[EventType "swiss"]
[EventRounds "9"]
[EventCountry "GER"]
[SourceTitle "playchess.com"]
[Source "ChessBase"]
[SourceQuality "1"]
[TimeControl "40/4500+30:900+30"]

1. c4 {[%emt 0:00:00]} Nf6 {[%emt 0:00:00]} 2. Nc3 {[%emt 0:00:00]} g6 {[%emt 0:00:00]} 3. Nf3 {[%emt 0:00:00]} Bg7 {[%emt 0:00:00]} 4. g3 {[%emt 0:00:00]} O-O {[%emt 0:00:00]} 5. Bg2 {[%emt 0:00:00]} c6 {[%emt 0:00:00]} 6. O-O {[%emt 0:02:36]} d5 {[%emt 0:00:00]} 7. cxd5 {[%emt 0:01:44]} cxd5 {[%emt 0:00:00]} 8. d4 {[%emt 0:02:35]} Nc6 {[%emt 0:00:00]} 9. a3 {[%emt 0:00:31]} a6 {[%emt 0:00:00]} 10. b4 {[%emt 0:03:04]} Ne4 {[%emt 0:00:00]} 11. Bb2 {[%emt 0:00:40]} Bg4 {[%emt 0:00:28]} 12. Nb1 {[%emt 0:11:25]} Qb6 {[%emt 0:04:57]} 13. e3 {[%emt 0:09:42]} e5 {[%emt 0:01:15]} 14. dxe5 {[%emt 0:06:40]} Nxe5 {[%emt 0:00:50]} 15. Bxe5 {[%emt 0:00:10]} Bxe5 {[%emt 0:00:17]} 16. Ra2 {[%emt 0:00:25]} Rfd8 {[%emt 0:02:36]} 17. Qd3 {[%emt 0:04:06]} Bg7 {[%emt 0:01:16]} 18. Rc1 {[%emt 0:15:34]} Bf5 {[%emt 0:08:14]} 19. Qd1 {[%emt 0:06:25]} d4 {[%emt 0:03:02]} 20. Nxd4 {[%emt 0:03:34]} Bxd4 {[%emt 0:00:13]} 21. exd4 {[%emt 0:01:49]} Rxd4 {[%emt 0:01:40]} 22. Qe1 {[%emt 0:01:32]} Rad8 {[%emt 0:04:44]} 23. Bf3 {[%emt 0:02:24]} Ng5 {[%emt 0:00:32]} 24. Bg2 {[%emt 0:00:21]} Bg4 {[%emt 0:03:20]} 25. Rd2 {[%emt 0:01:22]} Nf3+ {[%emt 0:02:49]} 26. Bxf3 {[%emt 0:00:06]} Bxf3 {[%emt 0:00:06]} 27. Rcc2 {[%emt 0:05:36]} Re4 {[%emt 0:03:46]} 28. Rxd8+ {[%emt 0:01:05]} Qxd8 {[%emt 0:00:07]} 29. Qc1 {[%emt 0:00:19]} Qd3 {[%emt 0:08:01]} 30. Nd2 {[%emt 0:03:46]} Re2 {[%emt 0:04:31]} 31. Rc8+ {[%emt 0:00:16]} Kg7 {[%emt 0:00:10]} 32. Nxf3 {[%emt 0:00:12]} Qxf3 {[%emt 0:00:17]} 33. Qa1+ {[%emt 0:00:20]} Kh6 {[%emt 0:00:31]} 34. Qc1+ {[%emt 0:00:31]} g5 {[%emt 0:00:44]} 35. Qf1 {[%emt 0:00:13]} Ra2 {[%emt 0:00:42]} 36. Rh8 {[%emt 0:02:25]} Qf5 {[%emt 0:01:26]} 37. Rb8 {[%emt 0:01:11]} Rb2 {[%emt 0:00:57]} 38. Rd8 {[%emt 0:00:22]} Qf6 {[%emt 0:00:48]} 39. Rg8 {[%emt 0:00:50]} Qf5 {[%emt 0:00:36]} 40. Rd8 {[%emt 0:00:05]} Qf6 {[%emt 0:00:41]} 41. Rd3 {[%emt 0:16:32]} Kg7 {[%emt 0:15:55]} 1/2-1/2

[Event "GER-ch Youth-U12 2024"]
[Site "Willingen"]
[Date "2024.05.21"]
[Round "4"]
[White "Obermair, Hannes"]
[Black "Leonhardt, Max"]
[Result "0-1"]
[ECO "D46"]
[WhiteElo "1668"]
[BlackElo "1691"]
[Annotator "NA RC"]
[PlyCount "110"]
[EventDate "2022.06.05"]
[EventType "swiss"]
[EventRounds "9"]
[EventCountry "GER"]
[SourceTitle "playchess.com"]
[Source "ChessBase"]
[SourceQuality "1"]
[TimeControl "40/4500+30:900+30"]

1. c4 {[%emt 0:00:00]} e6 {[%emt 0:00:00]} 2. Nc3 {[%emt 0:00:00]} d5 {[%emt 0:00:00]} 3. d4 {[%emt 0:00:00]} c6 {[%emt 0:00:00]} 4. Nf3 {[%emt 0:00:00]} Bd6 {[%emt 0:00:00]} 5. h3 {[%emt 0:00:00]} h6 {[%emt 0:00:00]} 6. e3 {[%emt 0:00:00]} Nf6 {[%emt 0:00:00]} 7. Bd3 {[%emt 0:00:00]} Nbd7 {[%emt 0:00:00]} 8. O-O {[%emt 0:00:00]} O-O {[%emt 0:00:00]} 9. Bd2 {[%emt 0:00:00]} Re8 {[%emt 0:00:00]} 10. Qc2 {[%emt 0:00:00]} Bb8 {[%emt 0:00:00]} 11. Rac1 {[%emt 0:00:00]} Qc7 {[%emt 0:00:11]} 12. cxd5 {[%emt 0:01:41]} exd5 {[%emt 0:00:09]} 13. Nb5 {[%emt 0:03:53]} Qd8 {[%emt 0:01:00]} 14. Nc3 {[%emt 0:03:17]} Nf8 {[%emt 0:01:07]} 15. Qb3 {[%emt 0:04:42]} Ne6 {[%emt 0:03:47]} 16. Ne2 {[%emt 0:10:06]} Qc7 {[%emt 0:06:08]} 17. Ng3 {[%emt 0:06:05]} Ng5 {[%emt 0:01:18]} 18. Nxg5 {[%emt 0:02:47]} hxg5 {[%emt 0:00:05]} 19. Qd1 {[%emt 0:01:43]} g6 {[%emt 0:01:56]} 20. Qf3 {[%emt 0:06:16]} Nh5 {[%emt 0:01:14]} 21. Bb4 {[%emt 0:07:15]} Nxg3 {[%emt 0:02:34]} 22. fxg3 {[%emt 0:00:21]} f5 {[%emt 0:00:19]} 23. g4 {[%emt 0:04:43]} Qh2+ {[%emt 0:23:21]} 24. Kf2 {[%emt 0:00:21]} fxg4 {[%emt 0:00:26]} 25. hxg4 {[%emt 0:01:52]} Qh4+ {[%emt 0:00:18]} 26. g3 {[%emt 0:04:09]} Qh2+ {[%emt 0:01:30]} 27. Ke1 {[%emt 0:01:37]} Qxg3+ {[%emt 0:01:20]} 28. Qxg3 {[%emt 0:01:23]} Bxg3+ {[%emt 0:00:07]} 29. Kd2 {[%emt 0:00:51]} Bxg4 {[%emt 0:23:25]} 30. Bxg6 {[%emt 0:02:02]} Bh4 {[%emt 0:03:49]} 31. Bxe8 {[%emt 0:01:21]} Rxe8 {[%emt 0:00:05]} 32. Rf6 {[%emt 0:00:59]} Bh3 {[%emt 0:04:23]} 33. Rh1 {[%emt 0:03:38]} g4 {[%emt 0:00:00]} 34. Rh6 {[%emt 0:03:08]} Bf2 {[%emt 0:00:00]} 35. Rf6 {[%emt 0:07:03]} Bxe3+ {[%emt 0:00:00]} 36. Kd3 {[%emt 0:01:09]} Kg7 {[%emt 0:01:00]} 37. Rd6 {[%emt 0:01:42]} Re4 {[%emt 0:05:51]} 38. Rd7+ {[%emt 0:01:59]} Kg6 {[%emt 0:00:25]} 39. Rxb7 {[%emt 0:01:11]} Bxd4 {[%emt 0:00:47]} 40. Bc3 {[%emt 0:04:31]} Bb6 {[%emt 0:00:43]} 41. Re1 {[%emt 0:17:54]} Bg2 {[%emt 0:22:19]} 42. Rxe4 {[%emt 0:00:00]} dxe4+ {[%emt 0:00:00]} 43. Ke2 {[%emt 0:00:00]} Bf3+ {[%emt 0:00:00]} 44. Kf1 {[%emt 0:00:00]} Kg5 {[%emt 0:00:00]} 45. Be1 {[%emt 0:00:00]} e3 {[%emt 0:00:00]} 46. Kg1 {[%emt 0:00:00]} Bd5 {[%emt 0:00:00]} 47. Rg7+ {[%emt 0:00:00]} Kf4 {[%emt 0:00:00]} 48. b3 {[%emt 0:00:00]} Kf3 {[%emt 0:00:00]} 49. Kh2 {[%emt 0:00:00]} Ke2 {[%emt 0:00:00]} 50. Bg3 {[%emt 0:00:00]} Bf3 {[%emt 0:00:00]} 51. Rd7 {[%emt 0:00:00]} Kf1 {[%emt 0:00:00]} 52. a3 {[%emt 0:00:00]} e2 {[%emt 0:00:00]} 53. Bh4 {[%emt 0:00:00]} Bg1+ {[%emt 0:00:00]} 54. Kg3 {[%emt 0:00:00]} e1=Q+ {[%emt 0:00:00]} 55. Kf4 {[%emt 0:00:00]} Qxh4 {[%emt 0:00:00]} 0-1

[Event "GER-ch Youth-U12 2024"]
[Site "Willingen"]
[Date "2024.05.21"]
[Round "4"]
[White "Prashanthakumar, Arnesh"]
[Black "Noll, Raphael"]
[Result "0-1"]
[ECO "C55"]
[WhiteElo "1634"]
[BlackElo "1775"]
[Annotator "NA RC"]
[PlyCount "100"]
[EventDate "2022.06.05"]
[EventType "swiss"]
[EventRounds "9"]
[EventCountry "GER"]
[SourceTitle "playchess.com"]
[Source "ChessBase"]
[SourceQuality "1"]
[TimeControl "40/4500+30:900+30"]

1. e4 {[%emt 0:00:00]} e5 {[%emt 0:00:00]} 2. Bc4 {[%emt 0:00:00]} Nf6 {[%emt 0:00:00]} 3. Nc3 {[%emt 0:00:00]} Nc6 {[%emt 0:00:00]} 4. Nf3 {[%emt 0:00:00]} Nxe4 {[%emt 0:00:00]} 5. Nxe4 {[%emt 0:00:00]} d5 {[%emt 0:00:00]} 6. Bd3 {[%emt 0:00:00]} dxe4 {[%emt 0:00:00]} 7. Bxe4 {[%emt 0:00:00]} Bg4 {[%emt 0:00:00]} 8. d3 {[%emt 0:00:00]} Qd7 {[%emt 0:00:00]} 9. Be3 {[%emt 0:00:00]} Bd6 {[%emt 0:00:00]} 10. Qe2 {[%emt 0:00:00]} f5 {[%emt 0:00:51]} 11. Bxc6 {[%emt 0:00:00]} Qxc6 {[%emt 0:00:31]} 12. h3 {[%emt 0:08:41]} Bxf3 {[%emt 0:06:01]} 13. gxf3 {[%emt 0:01:02]} Bb4+ {[%emt 0:02:37]} 14. Bd2 {[%emt 0:03:58]} Bxd2+ {[%emt 0:02:06]} 15. Kxd2 {[%emt 0:03:13]} Qd5 {[%emt 0:01:16]} 16. Rae1 {[%emt 0:01:36]} O-O-O {[%emt 0:02:53]} 17. Qxe5 {[%emt 0:02:51]} Qxf3 {[%emt 0:01:29]} 18. Qe3 {[%emt 0:02:22]} Qxe3+ {[%emt 0:01:06]} 19. Rxe3 {[%emt 0:02:02]} Rhe8 {[%emt 0:01:19]} 20. Rf3 {[%emt 0:04:03]} Re5 {[%emt 0:04:26]} 21. Rg1 {[%emt 0:01:40]} g6 {[%emt 0:01:18]} 22. Rg5 {[%emt 0:01:48]} Kd7 {[%emt 0:01:54]} 23. h4 {[%emt 0:01:04]} Ke6 {[%emt 0:01:18]} 24. Re3 {[%emt 0:02:01]} Kf6 {[%emt 0:02:40]} 25. Rxe5 {[%emt 0:04:08]} Kxe5 {[%emt 0:00:13]} 26. Ke3 {[%emt 0:00:32]} Kf6 {[%emt 0:00:35]} 27. Rg1 {[%emt 0:01:13]} c5 {[%emt 0:01:06]} 28. c3 {[%emt 0:00:32]} h6 {[%emt 0:02:49]} 29. d4 {[%emt 0:01:58]} cxd4+ {[%emt 0:03:24]} 30. cxd4 {[%emt 0:01:15]} Rc8 {[%emt 0:00:36]} 31. Kd3 {[%emt 0:01:07]} Rc7 {[%emt 0:01:59]} 32. Re1 {[%emt 0:01:14]} g5 {[%emt 0:02:30]} 33. hxg5+ {[%emt 0:01:42]} hxg5 {[%emt 0:01:47]} 34. d5 {[%emt 0:01:01]} Re7 {[%emt 0:02:41]} 35. Rh1 {[%emt 0:03:10]} Ke5 {[%emt 0:01:54]} 36. Rh5 {[%emt 0:01:22]} g4 {[%emt 0:01:57]} 37. a3 {[%emt 0:05:33]} b5 {[%emt 0:01:46]} 38. Ke3 {[%emt 0:01:07]} Rd7 {[%emt 0:01:29]} 39. Rh6 {[%emt 0:01:35]} f4+ {[%emt 0:03:00]} 40. Ke2 {[%emt 0:02:12]} Rxd5 {[%emt 0:06:29]} 41. Ra6 {[%emt 0:15:50]} Rd7 {[%emt 0:25:37]} 42. Ra5 {[%emt 0:00:35]} Rb7 {[%emt 0:03:44]} 43. a4 {[%emt 0:01:22]} Ke4 {[%emt 0:07:24]} 44. axb5 {[%emt 0:01:17]} f3+ {[%emt 0:05:15]} 45. Kd2 {[%emt 0:03:02]} Rd7+ {[%emt 0:02:55]} 46. Kc2 {[%emt 0:00:55]} g3 {[%emt 0:00:00]} 47. fxg3 {[%emt 0:00:00]} Rf7 {[%emt 0:00:00]} 48. Ra1 {[%emt 0:00:00]} f2 {[%emt 0:00:00]} 49. Rf1 {[%emt 0:00:00]} Ke3 {[%emt 0:00:00]} 50. Kd1 {[%emt 0:00:00]} Rd7+ {[%emt 0:00:00]} 0-1

[Event "GER-ch Youth-U12 2024"]
[Site "Willingen"]
[Date "2024.05.21"]
[Round "4"]
[White "Heins, Simon"]
[Black "Franke, Moritz"]
[Result "1-0"]
[ECO "B39"]
[WhiteElo "1626"]
[BlackElo "1597"]
[Annotator "NA RC"]
[PlyCount "108"]
[EventDate "2022.06.05"]
[EventType "swiss"]
[EventRounds "9"]
[EventCountry "GER"]
[SourceTitle "playchess.com"]
[Source "ChessBase"]
[SourceQuality "1"]
[TimeControl "40/4500+30:900+30"]

1. e4 {[%emt 0:00:00]} c5 {[%emt 0:00:00]} 2. Nf3 {[%emt 0:00:00]} Nc6 {[%emt 0:00:00]} 3. d4 {[%emt 0:00:00]} cxd4 {[%emt 0:00:00]} 4. Nxd4 {[%emt 0:00:00]} g6 {[%emt 0:00:00]} 5. c4 {[%emt 0:00:00]} Bg7 {[%emt 0:00:00]} 6. Be3 {[%emt 0:00:00]} Nf6 {[%emt 0:00:00]} 7. Nc3 {[%emt 0:00:00]} Ng4 {[%emt 0:00:00]} 8. Qxg4 {[%emt 0:00:00]} Nxd4 {[%emt 0:00:00]} 9. Qd1 {[%emt 0:00:00]} e5 {[%emt 0:00:00]} 10. Be2 {[%emt 0:00:00]} O-O {[%emt 0:00:00]} 11. O-O {[%emt 0:00:00]} d6 {[%emt 0:00:00]} 12. Qd2 {[%emt 0:00:00]} Be6 {[%emt 0:00:00]} 13. Rfd1 {[%emt 0:00:00]} Qc7 {[%emt 0:00:00]} 14. Bxd4 {[%emt 0:01:17]} exd4 {[%emt 0:00:00]} 15. Nb5 {[%emt 0:01:31]} Qc5 {[%emt 0:00:00]} 16. Rac1 {[%emt 0:04:59]} a6 {[%emt 0:01:42]} 17. Nxd4 {[%emt 0:01:08]} Bxd4 {[%emt 0:01:46]} 18. Qxd4 {[%emt 0:00:07]} Rfd8 {[%emt 0:01:21]} 19. Rc2 {[%emt 0:02:39]} Rac8 {[%emt 0:01:55]} 20. b3 {[%emt 0:03:44]} Qxd4 {[%emt 0:01:01]} 21. Rxd4 {[%emt 0:00:04]} Rd7 {[%emt 0:00:14]} 22. Rcd2 {[%emt 0:00:13]} Rcd8 {[%emt 0:00:11]} 23. g4 {[%emt 0:02:29]} Kg7 {[%emt 0:00:18]} 24. f4 {[%emt 0:00:07]} f5 {[%emt 0:00:45]} 25. gxf5 {[%emt 0:00:52]} gxf5 {[%emt 0:00:07]} 26. exf5 {[%emt 0:00:32]} Bxf5 {[%emt 0:00:10]} 27. Kf2 {[%emt 0:02:12]} Kf6 {[%emt 0:00:55]} 28. Bf3 {[%emt 0:00:34]} h6 {[%emt 0:02:54]} 29. Be4 {[%emt 0:08:47]} Bxe4 {[%emt 0:00:51]} 30. Rxe4 {[%emt 0:00:04]} Kf5 {[%emt 0:00:23]} 31. Red4 {[%emt 0:00:12]} Ke6 {[%emt 0:00:40]} 32. Kf3 {[%emt 0:00:28]} Rf7 {[%emt 0:00:14]} 33. Re2+ {[%emt 0:00:26]} Kf6 {[%emt 0:00:27]} 34. Rde4 {[%emt 0:02:51]} d5 {[%emt 0:01:17]} 35. Re6+ {[%emt 0:01:01]} Kg7 {[%emt 0:00:48]} 36. Rg2+ {[%emt 0:02:08]} Kf8 {[%emt 0:01:24]} 37. Rxh6 {[%emt 0:00:46]} d4 {[%emt 0:00:14]} 38. Rh8+ {[%emt 0:00:05]} Ke7 {[%emt 0:00:08]} 39. Rxd8 {[%emt 0:00:28]} Kxd8 {[%emt 0:00:03]} 40. Rd2 {[%emt 0:00:06]} Rd7 {[%emt 0:00:10]} 41. Ke4 {[%emt 0:15:04]} Kc7 {[%emt 0:15:38]} 42. Rxd4 {[%emt 0:00:06]} Re7+ {[%emt 0:00:04]} 43. Kf3 {[%emt 0:00:12]} Kc6 {[%emt 0:00:18]} 44. Rd5 {[%emt 0:00:51]} b5 {[%emt 0:00:15]} 45. Re5 {[%emt 0:00:12]} Rd7 {[%emt 0:00:09]} 46. cxb5+ {[%emt 0:00:06]} axb5 {[%emt 0:00:04]} 47. f5 {[%emt 0:00:15]} Kd6 {[%emt 0:00:29]} 48. Rxb5 {[%emt 0:00:06]} Kc6 {[%emt 0:00:08]} 49. a4 {[%emt 0:00:11]} Rd3+ {[%emt 0:00:06]} 50. Kg4 {[%emt 0:00:18]} Rd2 {[%emt 0:00:11]} 51. h4 {[%emt 0:00:07]} Rd6 {[%emt 0:00:07]} 52. Re5 {[%emt 0:00:10]} Rd4+ {[%emt 0:00:09]} 53. Kg5 {[%emt 0:00:05]} Kd6 {[%emt 0:00:12]} 54. Re3 {[%emt 0:00:13]} Kd5 {[%emt 0:00:57]} 1-0

[Event "GER-ch Youth-U12 2024"]
[Site "Willingen"]
[Date "2024.05.21"]
[Round "4"]
[White "Schmidt, Jossip"]
[Black "Balashvili, Amiran"]
[Result "1-0"]
[ECO "C50"]
[WhiteElo "1603"]
[BlackElo "1682"]
[Annotator "NA RC"]
[PlyCount "133"]
[EventDate "2022.06.05"]
[EventType "swiss"]
[EventRounds "9"]
[EventCountry "GER"]
[SourceTitle "playchess.com"]
[Source "ChessBase"]
[SourceQuality "1"]
[TimeControl "40/4500+30:900+30"]

1. e4 {[%emt 0:00:00]} e5 {[%emt 0:00:00]} 2. Nf3 {[%emt 0:00:00]} Nc6 {[%emt 0:00:00]} 3. Bc4 {[%emt 0:00:00]} Bc5 {[%emt 0:00:00]} 4. d3 {[%emt 0:00:00]} h6 {[%emt 0:00:00]} 5. Nc3 {[%emt 0:00:00]} d6 {[%emt 0:00:00]} 6. h3 {[%emt 0:00:00]} Nf6 {[%emt 0:00:00]} 7. Bd2 {[%emt 0:00:00]} a6 {[%emt 0:00:00]} 8. a4 {[%emt 0:00:00]} Be6 {[%emt 0:00:00]} 9. Nd5 {[%emt 0:00:00]} O-O {[%emt 0:00:00]} 10. g4 {[%emt 0:00:00]} Bxd5 {[%emt 0:00:00]} 11. Bxd5 {[%emt 0:00:00]} Nxd5 {[%emt 0:00:00]} 12. exd5 {[%emt 0:00:00]} Nd4 {[%emt 0:00:00]} 13. h4 {[%emt 0:00:59]} Qf6 {[%emt 0:00:00]} 14. Nxd4 {[%emt 0:02:41]} exd4 {[%emt 0:00:00]} 15. Kf1 {[%emt 0:01:09]} Qg6 {[%emt 0:00:00]} 16. f4 {[%emt 0:00:34]} f5 {[%emt 0:00:13]} 17. Rg1 {[%emt 0:02:35]} fxg4 {[%emt 0:02:22]} 18. Rxg4 {[%emt 0:00:28]} Qf5 {[%emt 0:00:22]} 19. Qf3 {[%emt 0:01:04]} c6 {[%emt 0:00:30]} 20. Qg2 {[%emt 0:01:11]} Kh8 {[%emt 0:03:19]} 21. dxc6 {[%emt 0:01:41]} bxc6 {[%emt 0:00:36]} 22. Rxg7 {[%emt 0:00:49]} Rg8 {[%emt 0:00:08]} 23. Rxg8+ {[%emt 0:00:35]} Rxg8 {[%emt 0:00:03]} 24. Qh2 {[%emt 0:02:44]} Rg4 {[%emt 0:02:15]} 25. Kf2 {[%emt 0:02:04]} Qf6 {[%emt 0:00:38]} 26. Rh1 {[%emt 0:00:41]} h5 {[%emt 0:00:25]} 27. Kf3 {[%emt 0:00:49]} Kh7 {[%emt 0:15:30]} 28. Be1 {[%emt 0:01:29]} Qe6 {[%emt 0:02:03]} 29. Bd2 {[%emt 0:01:17]} Qd5+ {[%emt 0:24:34]} 30. Kf2 {[%emt 0:00:54]} Qa2 {[%emt 0:00:04]} 31. Rg1 {[%emt 0:00:52]} Qxb2 {[%emt 0:02:05]} 32. Rxg4 {[%emt 0:00:33]} hxg4 {[%emt 0:00:02]} 33. Qg2 {[%emt 0:00:17]} Qxc2 {[%emt 0:01:05]} 34. Qe4+ {[%emt 0:00:15]} Kh8 {[%emt 0:00:39]} 35. Qe8+ {[%emt 0:00:31]} Kg7 {[%emt 0:00:36]} 36. Qe7+ {[%emt 0:00:20]} Kg8 {[%emt 0:00:28]} 37. Qe6+ {[%emt 0:00:21]} Kh8 {[%emt 0:01:54]} 38. Ke2 {[%emt 0:00:55]} Bb4 {[%emt 0:00:32]} 39. Qc8+ {[%emt 0:00:19]} Kh7 {[%emt 0:00:22]} 40. Qb7+ {[%emt 0:00:09]} Kh6 {[%emt 0:01:05]} 41. Qxb4 {[%emt 0:15:16]} Kh5 {[%emt 0:15:25]} 42. Qxd6 {[%emt 0:00:21]} g3 {[%emt 0:00:40]} 43. Qxd4 {[%emt 0:00:51]} Kg4 {[%emt 0:01:06]} 44. f5+ {[%emt 0:00:37]} Kh3 {[%emt 0:00:40]} 45. f6 {[%emt 0:02:15]} Qa2 {[%emt 0:05:37]} 46. Qd7+ {[%emt 0:01:02]} Kh2 {[%emt 0:00:04]} 47. f7 {[%emt 0:01:06]} g2 {[%emt 0:00:44]} 48. Qd6+ {[%emt 0:00:32]} Kh1 {[%emt 0:00:25]} 49. f8=Q {[%emt 0:01:03]} g1=Q {[%emt 0:00:30]} 50. Qf3+ {[%emt 0:00:11]} Qg2+ {[%emt 0:00:05]} 51. Qxg2+ {[%emt 0:00:20]} Kxg2 {[%emt 0:00:04]} 52. Qxc6+ {[%emt 0:00:17]} Kg3 {[%emt 0:00:07]} 53. Qc7+ {[%emt 0:00:20]} Kxh4 {[%emt 0:00:09]} 54. Qc4+ {[%emt 0:00:11]} Qxc4 {[%emt 0:00:05]} 55. dxc4 {[%emt 0:00:07]} Kg4 {[%emt 0:00:07]} 56. Kd3 {[%emt 0:00:14]} Kf5 {[%emt 0:00:05]} 57. Kd4 {[%emt 0:00:14]} Ke6 {[%emt 0:00:03]} 58. Bf4 {[%emt 0:00:13]} Kd7 {[%emt 0:00:08]} 59. Kd5 {[%emt 0:00:06]} a5 {[%emt 0:00:07]} 60. c5 {[%emt 0:00:09]} Kd8 {[%emt 0:00:47]} 61. Kd6 {[%emt 0:00:53]} Kc8 {[%emt 0:00:08]} 62. c6 {[%emt 0:00:18]} Kd8 {[%emt 0:00:19]} 63. c7+ {[%emt 0:00:13]} Kc8 {[%emt 0:00:03]} 64. Bh6 {[%emt 0:00:14]} Kb7 {[%emt 0:00:03]} 65. Kd7 {[%emt 0:00:09]} Ka7 {[%emt 0:00:53]} 66. Be3+ {[%emt 0:00:17]} Kb7 {[%emt 0:00:38]} 67. c8=Q# {[%emt 0:00:21]} 1-0

[Event "GER-ch Youth-U12 2024"]
[Site "Willingen"]
[Date "2024.05.21"]
[Round "4"]
[White "Rinke, Alexander"]
[Black "König, Lian"]
[Result "1-0"]
[ECO "C77"]
[WhiteElo "1596"]
[BlackElo "1180"]
[Annotator "NA"]
[PlyCount "35"]
[EventDate "2022.06.05"]
[EventType "swiss"]
[EventRounds "9"]
[EventCountry "GER"]
[SourceTitle "playchess.com"]
[Source "ChessBase"]
[SourceQuality "1"]
[TimeControl "40/4500+30:900+30"]

1. e4 {[%emt 0:00:00]} e5 {[%emt 0:00:00]} 2. Nf3 {[%emt 0:00:00]} Nc6 {[%emt 0:00:00]} 3. Bb5 {[%emt 0:00:00]} a6 {[%emt 0:00:00]} 4. Ba4 {[%emt 0:00:00]} b5 {[%emt 0:00:00]} 5. Bb3 {[%emt 0:00:00]} Nf6 {[%emt 0:00:00]} 6. d3 {[%emt 0:00:00]} d6 {[%emt 0:00:00]} 7. Ng5 {[%emt 0:00:00]} d5 {[%emt 0:00:00]} 8. exd5 {[%emt 0:00:00]} Nxd5 {[%emt 0:00:00]} 9. Qf3 {[%emt 0:00:00]} Be6 {[%emt 0:04:27]} 10. Nxe6 {[%emt 0:00:00]} fxe6 {[%emt 0:00:12]} 11. O-O {[%emt 0:00:28]} Qd7 {[%emt 0:06:34]} 12. Nd2 {[%emt 0:06:13]} Nf6 {[%emt 0:09:37]} 13. a4 {[%emt 0:11:08]} b4 {[%emt 0:11:00]} 14. a5 {[%emt 0:08:24]} Nd5 {[%emt 0:06:32]} 15. Ba4 {[%emt 0:03:46]} Nde7 {[%emt 0:02:00]} 16. Nc4 {[%emt 0:04:14]} O-O-O {[%emt 0:07:22]} 17. Nxe5 {[%emt 0:01:55]} Kb7 {[%emt 0:01:03]} 18. Nxd7 {[%emt 0:00:31]} 1-0

[Event "GER-ch Youth-U12 2024"]
[Site "Willingen"]
[Date "2024.05.21"]
[Round "4"]
[White "Moskalenko, Michael"]
[Black "Lanert, Theodor"]
[Result "1-0"]
[ECO "E94"]
[WhiteElo "1574"]
[BlackElo "1742"]
[Annotator "NA RC"]
[PlyCount "67"]
[EventDate "2022.06.05"]
[EventType "swiss"]
[EventRounds "9"]
[EventCountry "GER"]
[SourceTitle "playchess.com"]
[Source "ChessBase"]
[SourceQuality "1"]
[TimeControl "40/4500+30:900+30"]

1. d4 {[%emt 0:00:00]} Nf6 {[%emt 0:00:00]} 2. c4 {[%emt 0:00:00]} g6 {[%emt 0:00:00]} 3. Nc3 {[%emt 0:00:00]} Bg7 {[%emt 0:00:00]} 4. e4 {[%emt 0:00:00]} d6 {[%emt 0:00:00]} 5. Nf3 {[%emt 0:00:00]} O-O {[%emt 0:00:00]} 6. Be2 {[%emt 0:00:00]} e5 {[%emt 0:00:00]} 7. O-O {[%emt 0:00:00]} Na6 {[%emt 0:00:00]} 8. Be3 {[%emt 0:00:00]} Qe7 {[%emt 0:00:00]} 9. d5 {[%emt 0:00:00]} Nc5 {[%emt 0:00:00]} 10. Qc2 {[%emt 0:00:00]} a5 {[%emt 0:00:00]} 11. Ne1 {[%emt 0:02:58]} Ne8 {[%emt 0:02:37]} 12. Nd3 {[%emt 0:02:05]} Na6 {[%emt 0:05:10]} 13. a3 {[%emt 0:07:40]} f5 {[%emt 0:07:34]} 14. f3 {[%emt 0:00:12]} f4 {[%emt 0:07:09]} 15. Bf2 {[%emt 0:00:30]} g5 {[%emt 0:01:02]} 16. b4 {[%emt 0:08:35]} h5 {[%emt 0:00:28]} 17. c5 {[%emt 0:08:58]} g4 {[%emt 0:14:02]} 18. Na4 {[%emt 0:13:13]} g3 {[%emt 0:19:58]} 19. hxg3 {[%emt 0:04:39]} fxg3 {[%emt 0:00:39]} 20. Bxg3 {[%emt 0:00:50]} Qg5 {[%emt 0:00:34]} 21. Bh2 {[%emt 0:03:24]} dxc5 {[%emt 0:13:14]} 22. b5 {[%emt 0:02:40]} Nb8 {[%emt 0:04:13]} 23. Ndxc5 {[%emt 0:01:23]} Bh6 {[%emt 0:02:07]} 24. Bc4 {[%emt 0:01:28]} Nd6 {[%emt 0:01:18]} 25. Ne6 {[%emt 0:04:53]} Qe3+ {[%emt 0:00:30]} 26. Kh1 {[%emt 0:00:32]} Rf7 {[%emt 0:01:07]} 27. Bxe5 {[%emt 0:00:59]} h4 {[%emt 0:00:49]} 28. Bxd6 {[%emt 0:09:17]} cxd6 {[%emt 0:00:20]} 29. Rfe1 {[%emt 0:00:49]} Qd2 {[%emt 0:01:18]} 30. Qxd2 {[%emt 0:00:22]} Bxd2 {[%emt 0:00:03]} 31. Re2 {[%emt 0:00:11]} Bc3 {[%emt 0:01:14]} 32. Nxc3 {[%emt 0:00:08]} Bxe6 {[%emt 0:00:05]} 33. dxe6 {[%emt 0:00:03]} Rc7 {[%emt 0:00:09]} 34. e7+ {[%emt 0:00:17]} 1-0